Cogmind - Beta 10.2 @@@ ROGUE MODE // 2020.12.29 @ 14:19:48 Player: CrossedViper Result: Self-destructed Performance ------------- Evolutions (1) 500 Regions Visited (6) 1200 Robots Destroyed (58) 290 Value Destroyed (1440) 1440 Prototype IDs (26) 520 Alien Tech Used (0) 0 Bonus (238) 238 TOTAL SCORE: 4188 Bonus ------- High Alert Combat Kills 22 Aligned with FarCom 300 Friendly Fire -84 Cogmind --------- Core Integrity 87/400 Matter 232/300 Energy 310/310 System Corruption 3% Temperature Cool (0) Movement Treading (200) Ox2 Location -8/Mines Parts ------- > --- POWER (1) -------- Reinforced Fission Core > --- PROPULSION (2) --- Light Treads Light Treads > --- UTILITY (4) ------ Humpback Salvage Targeting Computer > --- WEAPON (2) ------- Minigun Minigun > --- INVENTORY (24) --- Fission Core Light Treads Advanced Myomer Leg Advanced Myomer Leg Experimental Heat Sink Large Storage Unit High-capacity Storage Unit Humpback Humpback High-capacity Matter Pod (0) Advanced Sensor Array Advanced Sensor Array Improved Terrain Scanner Experimental Targeting Computer System Backup Module Improved EM Shotgun Latent Energy Streamer Flak Gun 8R-AWN's Boregun 8R-AWN's Boregun Rocket Launcher Mining Laser Peak State ------------ > --- POWER ------------ Reinforced Fission Core > --- PROPULSION ------- Light Treads Light Treads > --- UTILITY ---------- Humpback Gravity Neutralizing Apparatus Salvage Targeting Computer > --- WEAPON ----------- Minigun Minigun > --- INVENTORY -------- Fission Core Light Treads Advanced Myomer Leg Advanced Myomer Leg Experimental Heat Sink Large Storage Unit High-capacity Storage Unit Humpback Humpback Gravity Neutralizing Apparatus Advanced Sensor Array Advanced Sensor Array Improved Terrain Scanner System Backup Module Improved EM Shotgun Latent Energy Streamer Flak Gun 8R-AWN's Boregun 8R-AWN's Boregun Rocket Launcher Mining Laser [Rating: 33] Favorites ----------- Power Fission Core Engine Ion Engine Power Core Fission Core Propulsion Light Treads Treads Light Treads Leg Aluminum Leg Wheel Wheel Utility Large Storage Unit Device Improved Heat Sink Storage Large Storage Unit Processor Salvage Targeting Computer Protection Light Armor Plating Weapon Minigun Energy Gun EM Pulse Gun Energy Cannon Latent Energy Streamer Ballistic Gun Minigun Ballistic Cannon Slug Cannon Special Weapon Mining Laser Slashing Weapon Greatsword Build | -11 -10 -10 -9 -9 -9 -8 ------- Run | Scr Mat Min Mat Min Exi Min Slots Evolved 2 | . . . 2 . . . Power . | . . . . . . . Propulsion . | . . . . . . . Utility 2 | . . . 2 . . . Weapon . | . . . . . . . Parts Attached 60 | . 8 5 27 5 15 . Power 4 | . . . 3 . 1 . Engine 2 | . . . 2 . . . Core 2 | . . . 1 . 1 . Reactor . | . . . . . . . Propulsion 13 | . 3 1 6 1 2 . Treads 11 | . 2 1 5 1 2 . Leg 1 | . 1 . . . . . Wheel 1 | . . . 1 . . . Hover . | . . . . . . . Flight . | . . . . . . . Utility 17 | . 3 . 6 2 6 . Device 5 | . 1 . 1 1 2 . Storage 4 | . 2 . . . 2 . Processor 1 | . . . . . 1 . Hackware . | . . . . . . . Protection 7 | . . . 5 1 1 . Artifact . | . . . . . . . Weapon 26 | . 2 4 12 2 6 . Energy Gun 10 | . 1 3 6 . . . Energy Cannon 1 | . . . . . 1 . Ballistic Gun 9 | . 1 . 2 2 4 . Ballistic Cannon 2 | . . . 2 . . . Launcher . | . . . . . . . Special Weapon 3 | . . 1 2 . . . Impact Weapon . | . . . . . . . Slashing Weapon 1 | . . . . . 1 . Piercing Weapon . | . . . . . . . Special Melee Weapon . | . . . . . . . Unidentified Prototypes 3 | . . . 2 . 1 . Parts Lost 22 | . 1 3 12 . 6 . Power 2 | . . . 1 . 1 . Propulsion 7 | . . . 5 . 2 . Utility 2 | . . . 1 . 1 . Weapon 11 | . 1 3 5 . 2 . Highest Loss Streak 5 | . 1 1 3 . 5 . Average Slot Usage (%) 96 | . 99 97 97 99 90 . Engine 6 | . 14 14 10 . . . Core 4 | . . . . 11 10 . Treads 21 | . 14 28 20 22 21 . Leg 1 | . 13 . . . . . Device 7 | . 2 . 10 10 8 . Storage 21 | . 24 28 22 22 16 . Protection 7 | . . . 11 11 9 . Energy Gun 6 | . 20 10 5 . . . Ballistic Gun 13 | . 7 14 4 21 20 . Ballistic Cannon 2 | . . . 10 . . . Naked Turns . | . . . . . . . Heaviest Build 107 | 13 41 42 56 56 107 . Greatest Support 40 | 20 40 40 40 40 40 . Greatest Overweight (x) 16 | . 2 1 16 1 2 . Average Overweight (x) 1 | . . . 1 1 1 . Largest Inventory Capacity 38 | . 16 16 16 16 38 . Average Capacity 16 | . 13 16 16 16 20 . Most Carried 24 | . 16 16 16 16 24 . Average Carried 15 | . 10 15 13 15 18 . Final Capacity 24 | 6 16 16 16 16 24 24 Final Carried 24 | 6 16 16 16 16 24 24 Class Distribution -------------------- 60% | Mutant 25% | Scavenger-Mutant 14% | Hauler-Mutant Dominant Class ---------------- Mutant | -10/Materials Mutant | -10/Mines Scavenger-Mutant | -9/Materials Scavenger-Mutant | -9/Mines Hauler-Mutant | -9/Exiles Hauler-Mutant | -8/Mines Resources | -11 -10 -10 -9 -9 -9 -8 ----------- Run | Scr Mat Min Mat Min Exi Min Matter Collected 2079 | 200 102 319 790 273 395 . Remotely . | . . . . . . . Salvage Created 1782 | . 403 211 865 183 120 . Parts 121 | . 25 8 56 24 8 . Haulers Intercepted 5 | . 2 . 3 . . . Recyclers Shooed 1 | . . 1 . . . . Parts Field Recycled . | . . . . . . . Retrieved Matter . | . . . . . . . Parts Self-Destructed . | . . . . . . . Prevented . | . . . . . . . Kills | -11 -10 -10 -9 -9 -9 -8 ------- Run | Scr Mat Min Mat Min Exi Min Combat Hostiles Destroyed 46 | . 8 6 23 8 1 . Guns 31 | . 7 5 11 7 1 . Cannons 14 | . . 1 12 1 . . AOE 1 | . 1 . . . . . Classes Destroyed 9 | . 5 1 2 1 . . Worker 3 | . 1 . 2 . . . Builder 1 | . . . 1 . . . Tunneler 1 | . . . . 1 . . Hauler 5 | . 2 . 3 . . . Watcher 2 | . 1 . 1 . . . Swarmer 14 | . 3 . 5 6 . . Grunt 23 | . 5 5 11 2 . . Sentry 7 | . . . 7 . . . Demolisher 1 | . . 1 . . . . Best Kill Streak 6 | . 4 1 6 3 1 . Combat Bots Only 5 | . 3 1 5 3 1 . Max Kills in Single Turn 2 | . 2 1 1 1 1 . Gunslinging . | . . . . . . . Exploded 1 | . 1 . . . . . Melee . | . . . . . . . Uniques/NPCs Destroyed 1 | . . . . . 1 . 8R-AWN (-9/Exiles) Combat | -11 -10 -10 -9 -9 -9 -8 -------- Run | Scr Mat Min Mat Min Exi Min Damage Taken 4102 | . 405 473 1645 333 1246 . Core 492 | . 94 85 183 23 107 . Absorbed by Shields . | . . . . . . . Core Remaining (%) 64 | 100 . 28 . . . . Volleys Fired 217 | . 30 28 98 21 40 . Largest 2 | . 2 2 2 2 2 . Hottest 165 | . 90 120 165 73 85 . Shots Fired 385 | . 60 49 159 38 79 . Gun 283 | . 60 47 65 33 78 . Cannon 97 | . . . 91 5 1 . Launcher . | . . . . . . . Special 5 | . . 2 3 . . . Kinetic 256 | . 8 28 104 38 78 . Thermal 84 | . 9 20 55 . . . Explosive . | . . . . . . . Electromagnetic 45 | . 43 1 . . 1 . Robot Hit Streak 26 | . 10 10 8 8 26 . Robot Miss Streak 6 | . 3 4 6 2 1 . Penetration Max . | . . . . . . . Secondary Targets 4 | . 1 3 . . . . Max Gunslinging Chain 1 | . 1 1 . . . . Shots Hit Robots 258 | . 35 35 82 26 80 . Core Hits 86 | . 16 13 35 9 13 . Critical Hits 19 | . . . 14 3 2 . Critical Kills 7 | . . . 5 2 . . Critical Parts Destroyed 10 | . . . 8 1 1 . Melee Attacks 11 | . . . . . 11 . Impact . | . . . . . . . Slashing 11 | . . . . . 11 . Piercing . | . . . . . . . Sneak Attacks . | . . . . . . . Combat Hostiles . | . . . . . . . Follow-up Attacks . | . . . . . . . Damage Inflicted 5578 | . 829 461 2228 434 1626 . Guns 3274 | . 479 437 779 363 1216 . Cannons 1515 | . . . 1444 71 . . Explosions 360 | . 350 . . . 10 . Melee 400 | . . . . . 400 . Ramming 5 | . . . 5 . . . Kinetic 3532 | . 25 263 1594 434 1216 . Thermal 1240 | . 413 198 629 . . . Explosive . | . . . . . . . Electromagnetic 401 | . 391 . . . 10 . Impact . | . . . . . . . Slashing 400 | . . . . . 400 . Piercing . | . . . . . . . Highest Corruption 6 | . . . 5 6 5 . Average Corruption 4 | . . . 5 5 3 . Corruption Purged 6 | . . . . 1 5 . Effects 80 | . . . 40 19 21 . Message Errors 18 | . . . 5 8 5 . Matter Fused 12 | . . . 7 2 3 . Heat Flow Errors 9 | . . . 4 2 3 . Energy Discharges 12 | . . . 6 2 4 . Parts Rejected 1 | . . . . 1 . . Data Loss (minor) 11 | . . . 5 4 2 . Data Loss (major) 1 | . . . 1 . . . Misfires 2 | . . . 2 . . . Targeting Errors 10 | . . . 7 . 3 . Weapon Failures 4 | . . . 3 . 1 . Overload Shots . | . . . . . . . Overflow Damage 204 | . 157 . 47 . . . Projectiles 47 | . . . 47 . . . Explosions 157 | . 157 . . . . . Melee . | . . . . . . . Knockbacks 6 | . . . 5 1 . . Impact . | . . . . . . . Kinetic 5 | . . . 4 1 . . Secondary 1 | . . . 1 . . . Self-Inflicted Damage 231 | . 231 . . . . . Shots 3 | . 3 . . . . . Rammed 1 | . . . 1 . . . Targets Rammed 1 | . . . 1 . . . Kicked . | . . . . . . . Crushed . | . . . . . . . Highest Temperature 372 | . 228 89 372 219 258 . Average Temperature 68 | . 77 34 72 66 97 . Received Heat Transfer 762 | . 48 225 435 54 . . Effects 1 | . 1 . . . . . Energy Bleed 1 | . 1 . . . . . Siege Activations . | . . . . . . . Robots Corrupted . | . . . . . . . Combat Hostiles . | . . . . . . . Parts Fried 1 | . 1 . . . . . Impact Corruptions . | . . . . . . . Robots Melted . | . . . . . . . Combat Hostiles . | . . . . . . . Parts Melted 3 | . . . 3 . . . Heat Transferred 2251 | . 385 460 1406 . . . Parts Sabotaged . | . . . . . . . Parts Stolen . | . . . . . . . Parts Stripped . | . . . . . . . Power Chain Reactions 1 | . 1 . . . . . Missiles Intercepted . | . . . . . . . Latent Energy Used 200 | . . . . . 200 . LE Corruption 3 | . . . . . 3 . Alert | -11 -10 -10 -9 -9 -9 -8 ------- Run | Scr Mat Min Mat Min Exi Min Peak Influence 443 | . 322 160 443 323 . . Initial 93 | . . 55 7 93 . . Average 170 | . 133 68 232 199 . . Maximum Alert Level 2 | . 1 . 2 1 . . Low Security (%) 62 | . 85 100 30 59 . . Level 1 36 | . 14 . 68 40 . . Level 2 . | . . . 1 . . . Level 3 . | . . . . . . . Level 4 . | . . . . . . . Level 5 . | . . . . . . . High Security . | . . . . . . . Max Security . | . . . . . . . Squads Dispatched 6 | . 2 . 4 . . . Investigation 2 | . 1 . 1 . . . Extermination . | . . . . . . . Reinforcement 4 | . 1 . 3 . . . Assault . | . . . . . . . Garrison . | . . . . . . . Intercept . | . . . . . . . Construction Impeded 1 | . . . 1 . . . Haulers Reinforced . | . . . . . . . Stealth | -11 -10 -10 -9 -9 -9 -8 --------- Run | Scr Mat Min Mat Min Exi Min Distress Signals 1 | . . . 1 . . . Communications Jammed . | . . . . . . . Distress Signals . | . . . . . . . Times Spotted 69 | . 15 7 34 11 2 . Peak Tracking Total 4 | . 3 2 4 4 2 . Tactical Retreats 8 | . 2 . 3 3 . . Traps | -11 -10 -10 -9 -9 -9 -8 ------- Run | Scr Mat Min Mat Min Exi Min Traps Triggered 4 | . . . 2 2 . . Indirectly . | . . . . . . . Trap Hack Attempts . | . . . . . . . Triggered . | . . . . . . . Disarmed . | . . . . . . . Reprogrammed . | . . . . . . . Reused . | . . . . . . . Traps Extracted . | . . . . . . . Installed . | . . . . . . . Triggered . | . . . . . . . Machines | -11 -10 -10 -9 -9 -9 -8 ---------- Run | Scr Mat Min Mat Min Exi Min Machines Disabled 7 | . 2 . 2 . 3 . Max in Single Turn 2 | . 2 . 1 . 1 . Machines Sabotaged . | . . . . . . . Garrisons Compromised . | . . . . . . . Overloaded Fab Kills . | . . . . . . . Fab Network Shutdowns . | . . . . . . . Hacking | -11 -10 -10 -9 -9 -9 -8 --------- Run | Scr Mat Min Mat Min Exi Min Machines Accessed 8 | . 4 . 2 1 1 . Terminals 5 | . 3 . 2 . . . Fabricators . | . . . . . . . Repair Stations . | . . . . . . . Recycling Units 1 | . 1 . . . . . Scanalyzers . | . . . . . . . Garrison Access . | . . . . . . . Total Hacks 21 | . 13 . 6 1 1 . Successful 9 | . 4 . 3 1 1 . Failed 12 | . 9 . 3 . . . Catastrophic . | . . . . . . . Database Lockouts . | . . . . . . . Manual 20 | . 13 . 6 . 1 . Terminals 18 | . 12 . 6 . . . Fabricators . | . . . . . . . Repair Stations . | . . . . . . . Recycling Units 1 | . 1 . . . . . Scanalyzers . | . . . . . . . Garrison Access . | . . . . . . . Terminal Hacks 4 | . 1 . 1 1 1 . Robot Analysis 1 | . 1 . . . . . Open Door 1 | . . . . 1 . . Branch Access Points 1 | . . . 1 . . . EX-Prototype ID Bank 1 | . . . . . 1 . Fabricator Hacks . | . . . . . . . Repair Station Hacks . | . . . . . . . Recycling Unit Hacks . | . . . . . . . Scanalyzer . | . . . . . . . Garrison Access Hacks . | . . . . . . . Unauthorized Hacks 5 | . 3 . 2 . . . Terminals 4 | . 2 . 2 . . . Track 2 | . 1 . 1 . . . Botnet 2 | . 1 . 1 . . . Fabricators . | . . . . . . . Repair Stations . | . . . . . . . Recycling Units 1 | . 1 . . . . . Tunnel 1 | . 1 . . . . . Scanalyzers . | . . . . . . . Garrison Access . | . . . . . . . Data Cores Recovered . | . . . . . . . Used . | . . . . . . . Hacking Detections 5 | . 3 . 2 . . . Full Trace Events 1 | . . . 1 . . . Feedback Events . | . . . . . . . Feedback Blocked . | . . . . . . . Robot Schematics Acquired . | . . . . . . . Robots Built . | . . . . . . . Matter . | . . . . . . . Time . | . . . . . . . Total Robot Build Rating . | . . . . . . . Part Schematics Acquired . | . . . . . . . Parts Built . | . . . . . . . Matter . | . . . . . . . Time . | . . . . . . . Total Part Build Rating . | . . . . . . . Parts Repaired . | . . . . . . . Time . | . . . . . . . Parts Recycled . | . . . . . . . Recycled Matter . | . . . . . . . Retrieved Matter . | . . . . . . . Retrieved Components . | . . . . . . . Parts Scanalyzed . | . . . . . . . Part Schematics Acquired . | . . . . . . . Parts Damaged . | . . . . . . . Bothacking | -11 -10 -10 -9 -9 -9 -8 ------------ Run | Scr Mat Min Mat Min Exi Min Used RIF Installer . | . . . . . . . Robots Hacked . | . . . . . . . Non-combat . | . . . . . . . Combat . | . . . . . . . Robot Hacks Applied . | . . . . . . . Relay Couplers Released . | . . . . . . . Robots Rewired . | . . . . . . . Allies Hacked . | . . . . . . . Hacks Repelled . | . . . . . . . Allies | -11 -10 -10 -9 -9 -9 -8 -------- Run | Scr Mat Min Mat Min Exi Min Total Allies . | . . . . . . . Largest Group . | . . . . . . . Highest-Rated Group . | . . . . . . . Highest-Rated Ally . | . . . . . . . Total Orders . | . . . . . . . Ally Attacks . | . . . . . . . Total Damage . | . . . . . . . Kills . | . . . . . . . Allies Corrupted . | . . . . . . . Allies Melted . | . . . . . . . Intel | -11 -10 -10 -9 -9 -9 -8 ------- Run | Scr Mat Min Mat Min Exi Min Robot Analysis Total 1 | . 1 . . . . . Derelict Logs Recovered 4 | . . 2 . 2 . . Drone Launches . | . . . . . . . Drone Recoveries . | . . . . . . . Exploration | -11 -10 -10 -9 -9 -9 -8 ------------- Run | Scr Mat Min Mat Min Exi Min Turns Passed 4787 | . 711 704 1234 768 1370 . Spaces Moved 2111 | 1 364 355 501 389 501 . Core 1 | . . . 1 . . . Treads 1904 | . 182 355 477 389 501 . Legs 183 | 1 182 . . . . . Wheels 23 | . . . 23 . . . Hover . | . . . . . . . Flight . | . . . . . . . Fastest Speed 120 | 120 120 160 120 180 180 . Average Speed 176 | 120 159 169 178 180 190 . Slowest Speed 850 | 120 180 180 850 180 200 . Overloaded Moves . | . . . . . . . Propulsion Burnouts . | . . . . . . . Robots Hopped . | . . . . . . . Cave-ins Triggered . | . . . . . . . Exploration Rate (%) 52 | 2 66 92 51 83 69 3 Regions Visited 6 Branch Regions 4 Pre-discovered Areas 2 | . 1 . . 1 . . Known Exits Taken 1 | . . . 1 . . . Unknown Exits Taken 5 | 1 1 1 . 1 1 . Scrap Searched 3 | . . 2 . 1 . . Spaces Dug 4 | . . . 4 . . . Terrain Destroyed 97 | . 39 1 37 3 17 . Melee . | . . . . . . . Projectile 41 | . . 1 37 3 . . AOE 56 | . 39 . . . 17 . Terrain Rammed . | . . . . . . . Walls Destroyed . | . . . . . . . Machines Disabled . | . . . . . . . Actions | -11 -10 -10 -9 -9 -9 -8 --------- Run | Scr Mat Min Mat Min Exi Min Total 2779 | . 435 403 677 427 837 . Wait 282 | . 17 8 17 2 238 . Move 2105 | . 363 354 500 388 500 . Hop . | . . . . . . . Pick Up 61 | . 12 5 21 5 18 . Fast Attach 10 | . 2 1 3 1 3 . Attach 29 | . 1 2 15 2 9 . Detach 5 | . 1 . . . 4 . Swap 21 | . 5 2 9 2 3 . Drop 37 | . 4 3 13 6 11 . Fire 217 | . 30 28 98 21 40 . Melee 11 | . . . . . 11 . Ram . | . . . . . . . Kick . | . . . . . . . Crush 1 | . . . 1 . . . Escape Stasis . | . . . . . . . Rewire . | . . . . . . . Trap . | . . . . . . . Miscellaneous . | . . . . . . . Route ------- -11/Scrapyard -10/Materials (discovered 4 exits: *Mat x3 / [*Min]) -10/Mines (discovered 2 exits: *Mat x2) -9/Materials (discovered 2 exits: [*Mat] / *Min) -9/Mines (discovered 4 exits: [*Mat x2] / *Exi / [*Zio]) -9/Exiles -8/Mines History --------- Turn | Location | Event 1 | -11/Scrapyard | Discovered new exit (range 0) 1 | -11/Scrapyard | Entered Materials 167 | -10/Materials | Discovered new exit (range 9) 266 | -10/Materials | Discovered new exit (range 14) 327 | -10/Materials | Build established: Mutant 442 | -10/Materials | Discovered new exit (range 7) 547 | -10/Materials | Discovered new exit (range 6) 712 | -10/Materials | Entered Mines 713 | -10/Mines | Assembled infested the area 718 | -10/Mines | Assisted by a Guerilla fighting off Assembled 752 | -10/Mines | Met a Derelict bent on vengeance 785 | -10/Mines | Discovered new exit (range 10) 798 | -10/Mines | Core integrity fell below 50% 855 | -10/Mines | Learned Materials terminal intel 1201 | -10/Mines | Discovered new exit (range 9) 1310 | -10/Mines | A weapon hastily lodged in a ceiling crevice suddenly fell to the ground 1416 | -10/Mines | Entered Materials 1416 | -9/Materials | Evolved 2 slots: Utility x2 1417 | -9/Materials | Loaded intel: 12 terminal locations 1527 | -9/Materials | Lost 3 parts (3w) 1952 | -9/Materials | Lost 3 parts (1p1n1u) 2005 | -9/Materials | Discovered new exit (range 13) 2136 | -9/Materials | Lost 3 parts (2n1w) 2522 | -9/Materials | Build established: Scavenger-Mutant 2601 | -9/Materials | Identified exit to Mines 2650 | -9/Materials | Entered Mines 2732 | -9/Mines | Core integrity fell below 50% 2871 | -9/Mines | Received a Rocket Launcher from a helpful Derelict 2975 | -9/Mines | Learned Materials garrison access intel 2991 | -9/Mines | Learned location of Zion (-7) 2997 | -9/Mines | Discovered new exit (range 9) 3078 | -9/Mines | Deemed a non-threat by the Exiles lab entrance 3078 | -9/Mines | Discovered new exit (range 5) 3110 | -9/Mines | Discovered new exit (range 14) 3136 | -9/Mines | Met a Derelict who couldn't figure out how to use a Trap Extractor 3215 | -9/Mines | A Derelict revealed a hidden shortcut to a safe place 3418 | -9/Mines | Entered Exiles 3467 | -9/Exiles | Met 8R-AWN 3470 | -9/Exiles | Build established: Mutant 3917 | -9/Exiles | Met EX-HEX 4034 | -9/Exiles | Met EX-DEC 4256 | -9/Exiles | Met EX-BIN 4284 | -9/Exiles | Aligned with FarCom system 4286 | -9/Exiles | Given EX-Vault access code 4332 | -9/Exiles | Opened EX-Vault 4344 | -9/Exiles | Found Latent Energy Streamer 4387 | -9/Exiles | Warned to stay clear of 0b10 Research branches 4392 | -9/Exiles | Build established: Hauler-Mutant 4414 | -9/Exiles | Exiles lab attacked by MAIN.C 4535 | -9/Exiles | Discovered new exit (range 14) 4563 | -9/Exiles | Attacked by the Exiles 4659 | -9/Exiles | Lost 5 parts (1p2n1u1w) 4726 | -9/Exiles | Destroyed 8R-AWN 4747 | -9/Exiles | Found Prototype Ballistic Gun 4752 | -9/Exiles | Found Prototype Ballistic Gun 4760 | -9/Exiles | Found Prototype Processor 4788 | -9/Exiles | Left Exiles lab with Latent Energy Streamer 4788 | -9/Exiles | Entered Mines 4788 | -8/Mines | Self-destructed Last Messages --------------- 04707_ Penetrated by HV Slug. 04717_ Critical hit. 04717_ Minigun destroyed. 04722_ Penetrated by HV Slug. 04726_ 8R-AWN destroyed. 04731_ Acquired Prototype Leg. 04734_ Acquired Prototype Device. 04740_ Acquired Prototype Leg. 04742_ U&DRHTN,YAFD6U,= 2P&:SNEVANFP5,SGQ5GQ 04743_ Acquired Rnf. Fission Core. 04747_ Acquired Prototype Ballistic Gun. 04755_ Acquired Prototype Device. 04758_ Identified Gravity Neutralizing Apparatus. 04759_ Dropped Gravity Neutralizing Apparatus. 04760_ Acquired Prototype Processor. 04765_ Acquired Hcp. Matter Pod. 04766_ Acquired 120 matter. 04783_ System corrupted: Energy discharge (-68). LOCATION=UNKNOWN GOAL=ESCAPE Map ----- +----------------------------------------------------+ | | | | | | | | | | | | | | | ?????????????????????????????????????????? | | ?????????????????????????????????????????? | | ?????????????????????????????????????????? | | ?????????????????????????????????????????? | | ?????????????????????????????????????????? | | ?????????????????????????????????????????? | | ?????????????????????????????????????????? | | ?????????????????###?????????????????????? | | ????????????????? #?????????????????????? | | ????????????????? #?????????????????????? | | ????????????????# #?????????????????????? | | ????????????????# #?????????????????????? | | ???????????????## ##????????????????????? | | ??????????????## #????????????????????? | | ??????????????# ###??????????????????? | | ??????????????? ???????????????????? | | ???????????????# #????????????????????? | | ???????????????# ##???????????????????? | | ???????????????# @ #???????????????????? | | ???????????????# #????????????????? | | ???????????????## #####????????????????? | | ????????????????#####????????????????????? | | ?????????????????????????????????????????? | | ?????????????????????????????????????????? | | ?????????????????????????????????????????? | | ?????????????????????????????????????????? | | ?????????????????????????????????????????? | | ?????????????????????????????????????????? | | ?????????????????????????????????????????? | | ?????????????????????????????????????????? | | ?????????????????????????????????????????? | | ?????????????????????????????????????????? | | ?????????????????????????????????????????? | | ?????????????????????????????????????????? | | ?????????????????????????????????????????? | | ?????????????????????????????????????????? | | ?????????????????????????????????????????? | | ?????????????????????????????????????????? | | ?????????????????????????????????????????? | | ?????????????????????????????????????????? | | ?????????????????????????????????????????? | | ?????????????????????????????????????????? | | ?????????????????????????????????????????? | +----------------------------------------------------+ Best States ------------- Heat Dissipation 42 Energy Generation 19 Energy Capacity 310 Matter Stores 300 Matter Capacity 300 Sight Range 16 Terrain Scan Density 10 Armor Coverage 300 Evasion (%) 40 Recoil Reduction 2 Salvage Targeting 1 Item Schematics ----------------- None Robot Schematics ------------------ None Fabricated ------------ Nothing Alien Tech Used ----------------- None Achievements -------------- None Challenges ------------ None Game ------ Seed MassMachinePerforator Manual? 0 Play Time 00:25:51 Cumulative 193.1 hours Start 2020.12.29 @ 13:52:05 End 2020.12.29 @ 14:19:48 Sessions 1 Manual Loads 0 Difficulty Rogue Special Mode None Game No. 186 Rogue 179 Adventurer 0 Explorer 7 Win Type - Total 4 Types 0/0/4/0/0/0/0/0/0 Lore% 65 Gallery% 89 Achievement% 66 Wizard Run 0 Options --------- ASCII 0 Keyboard 0 Movement Mouse Keybinds 0 Fullscreen 1 Font 18/X11 Map View 76x50 Tactical HUD 1 Map Filters NONE Filters NONE Steam 1 RUN: ff6abbdb-f7b9-40e6-b015-d7dd3e3fc848